[Event "LEM Niedersachsen-A-Open 2025"]
[Site "Verden"]
[Date "2025.01.02"]
[Round "1.17"]
[White "Schumann, Steffen"]
[Black "Zweigait, Leon"]
[Result "0-1"]
[ECO "B45"]
[WhiteElo "2002"]
[BlackElo "1865"]
[Annotator "NA RC"]
[PlyCount "78"]
[EventDate "2024.12.27"]
[EventType "swiss"]
[EventCountry "GER"]
[SourceTitle "playchess.com"]
[Source "ChessBase"]
[SourceQuality "1"]
[TimeControl "40/5400+30:1800+30"]

1. e4 {[%emt 0:00:01]} c5 {[%emt 0:00:05]} 2. Nf3 {[%emt 0:00:05]} e6 {[%emt 0:00:05]} 3. d4 {[%emt 0:00:16]} cxd4 {[%emt 0:00:07]} 4. Nxd4 {[%emt 0:00:09]} Nc6 {[%emt 0:00:05]} 5. Nc3 {[%emt 0:00:41]} Nf6 {[%emt 0:00:08]} 6. Ndb5 {[%emt 0:00:46]} Bc5 {[%emt 0:01:31]} 7. Nd6+ {[%emt 0:02:16] B45: Sicilian Four Knights.} Ke7 {[%emt 0:00:07]} 8. Bf4 {[%emt 0:00:16]} e5 {[%emt 0:00:04]} 9. Nf5+ {[%emt 0:00:11]} Kf8 {[%emt 0:00:06]} 10. Bg5 {[%emt 0:00:12]} d6 {[%emt 0:00:08]} 11. Ne3 {[%emt 0:08:25]} Qb6 {[%emt 0:03:46]} 12. Bxf6 {[%emt 0:11:24]} gxf6 {[%emt 0:06:12]} 13. Qd2 {[%emt 0:07:47]} Bxe3 {[%emt 0:11:51]} 14. fxe3 {[%emt 0:00:12]} Kg7 {[%emt 0:02:55]} 15. Bd3 {[%emt 0:04:21]} (15. Qxd6 $2 {is the wrong capture.} Qxe3+ (15... Qxb2 $2 16. Rb1 $19) 16. Be2 Rd8 $19) 15... Be6 {[%emt 0:04:15]} (15... Ne7 $16) 16. O-O {[%emt 0:00:19]} h5 {[%emt 0:00:47]} 17. Rf3 {[%emt 0:06:08]} (17. Nd5 $16 Bxd5 18. exd5) 17... Rh6 {[%emt 0:00:57]} 18. b3 {[%emt 0:10:52]} Rc8 {[%emt 0:04:07]} 19. Na4 {[%emt 0:03:09]} Qa5 {[%emt 0:01:44]} 20. Qf2 {[%emt 0:00:54]} b5 {[%emt 0:01:23]} 21. Nb2 {[%emt 0:08:34]} Qc3 {[%emt 0:01:55]} 22. Rb1 {[%emt 0:03:04]} Nb4 {[%emt 0:00:40]} 23. Bxb5 {[%emt 0:04:24]} Qxc2 {[%emt 0:06:25]} 24. Qxc2 {[%emt 0:00:15]} Rxc2 {[%emt 0:00:18]} 25. a3 {[%emt 0:03:33]} Na2 {[%emt 0:00:14]} (25... Rg6 26. Rf2 Rxf2 27. Kxf2) 26. Na4 {[%emt 0:06:21]} ({Only move:} 26. Bd3 $1 $15 Rc3 27. Bc4) 26... Nc3 {[%emt 0:01:50]} 27. Nxc3 {[%emt 0:00:06]} Rxc3 {[%emt 0:00:04]} 28. Ba4 {[%emt 0:05:49]} Rg6 {[%emt 0:00:33]} 29. h3 {[%emt 0:05:43]} d5 {[%emt 0:00:47]} 30. exd5 {[%emt 0:02:45]} Bxd5 {[%emt 0:00:07]} 31. Rf2 {[%emt 0:00:09]} Rxe3 {[%emt 0:00:09]} 32. Rc1 {[%emt 0:02:51]} f5 {[%emt 0:01:53]} 33. Rc7 {[%emt 0:01:06]} f4 {[%emt 0:00:49]} 34. Rd7 {[%emt 0:01:41]} Be4 {[%emt 0:01:27]} 35. Rxa7 {[%emt 0:01:15]} f3 $19 {[%emt 0:00:19]} (35... Re1+ $142 36. Kh2 Rg3 37. Bd7 Rc3 (37... Rxb3 $2 38. Be6 $19) 38. Be6 Kf6 39. Rc7 Rxc7 40. Bc4 Rd7 41. Rf1 Rxf1 42. Bxf1 Bd3 43. Kg1 Bxf1 44. Kxf1 e4 (44... Rd1+ $2 45. Ke2 $19) 45. b4 e3 (45... Rd1+ $2 46. Ke2 $19) 46. Ke1 Rd2 47. Kf1 Rf2+ 48. Ke1 Kf5 (48... Rxg2 {leads to mate.} 49. Kf1 f3 50. b5 Rh2 51. Kg1 e2 52. Kxh2 e1=Q 53. a4 Qf2+ 54. Kh1 Qg2#) 49. h4 Ke4 (49... Rxg2 50. Kf1 f3 51. b5 Rb2 52. Kg1 Kf4 53. Kh1 Kg3 54. Kg1 Rb1#) 50. b5 Kd3 (50... Rxg2 51. Kf1 f3 52. b6 e2+ 53. Ke1 Kd3 54. b7 f2#) 51. g4 fxg3 52. a4 e2 53. b6 Rf1#) 36. Be8 {[%emt 0:01:08]} Re1+ {[%emt 0:00:26]} 37. Kh2 {[%emt 0:00:23]} Rxg2+ {[%emt 0:00:05]} 38. Rxg2+ {[%emt 0:00:18]} fxg2 {[%emt 0:00:05]} 39. Rxf7+ {[%emt 0:00:15]} Kg8 {[%emt 0:00:11]} 0-1

[Event "LEM Niedersachsen-A-Open 2025"]
[Site "Verden"]
[Date "2025.01.02"]
[Round "1.18"]
[White "Aden, Dagmar"]
[Black "Ploog, Martin"]
[Result "0-1"]
[ECO "B06"]
[WhiteElo "1861"]
[BlackElo "2001"]
[Annotator "NA RC"]
[PlyCount "64"]
[EventDate "2024.12.27"]
[EventType "swiss"]
[EventCountry "GER"]
[SourceTitle "playchess.com"]
[Source "ChessBase"]
[SourceQuality "1"]
[TimeControl "40/5400+30:1800+30"]

1. e4 {[%emt 0:00:06]} d6 {[%emt 0:00:07]} 2. Bc4 {[%emt 0:00:11]} g6 {[%emt 0:01:36]} 3. Nf3 {[%emt 0:00:22]} Bg7 {[%emt 0:00:19]} 4. d4 {[%emt 0:01:05]} Nf6 {[%emt 0:00:58]} 5. e5 {[%emt 0:02:04]} dxe5 {[%emt 0:05:00]} 6. Nxe5 {[%emt 0:00:14]} O-O {[%emt 0:00:43]} 7. O-O {[%emt 0:01:26]} Nbd7 {[%emt 0:10:33]} 8. Nxd7 {[%emt 0:01:29] B06: Modern Defence.} Bxd7 {[%emt 0:00:36]} 9. c3 {[%emt 0:01:06]} c5 {[%emt 0:04:26]} 10. dxc5 {[%emt 0:02:45]} Qc7 {[%emt 0:05:09]} 11. Na3 {[%emt 0:03:17]} Qxc5 {[%emt 0:02:09]} 12. Be3 {[%emt 0:00:46]} Qc7 {[%emt 0:00:37]} 13. h3 {[%emt 0:02:24]} a6 {[%emt 0:02:55]} 14. Bb3 {[%emt 0:01:36]} b5 {[%emt 0:02:06]} 15. Nc2 {[%emt 0:01:28]} Rad8 {[%emt 0:05:30]} 16. Qe2 {[%emt 0:02:07]} Qb7 {[%emt 0:03:59]} 17. Bc5 {[%emt 0:05:33]} Rfe8 {[%emt 0:05:50]} 18. Rfd1 {[%emt 0:02:44]} Rc8 {[%emt 0:01:47]} 19. Bb4 {[%emt 0:02:05]} (19. Bxe7 $2 {loses.} Bf8 20. Rd4 Rxe7 $19 (20... Bxe7 $2 21. Qd1 $19)) 19... Bc6 {[%emt 0:02:23]} (19... Qc7 $15 {is superior.} 20. Qf3 (20. Bxe7 $2 {loses.} Bf8 $19) 20... a5 21. Rxd7 (21. Ba3 $2 Bc6 $19) 21... Qxd7 22. Bxa5 e6) 20. Ne3 {[%emt 0:02:57]} Nh5 {[%emt 0:06:33]} 21. Qg4 {[%emt 0:02:48]} e6 {[%emt 0:02:01]} 22. Bd6 {[%emt 0:06:25]} f5 {[%emt 0:06:02]} 23. Nxf5 {[%emt 0:04:04]} Nf6 {[%emt 0:08:02]} 24. Nh6+ {[%emt 0:05:06]} Kh8 $14 {[%emt 0:03:53]} (24... Bxh6 $11 25. Bxe6+ Kg7 26. Bxc8 Qa8) 25. Qh4 {[%emt 0:02:29]} Bxg2 {[%emt 0:02:20]} 26. Ng4 {[%emt 0:05:23]} Nh5 {[%emt 0:07:04]} 27. Ne3 {[%emt 0:03:53]} Bf6 {[%emt 0:03:18]} 28. Qb4 {[%emt 0:01:38]} Bxh3 {[%emt 0:01:06]} 29. Bc2 {[%emt 0:01:52]} Rc4 {[%emt 0:02:36]} 30. Qa5 {[%emt 0:01:48]} Rg4+ {[%emt 0:01:03]} 31. Kh2 {[%emt 0:00:57]} Rg2+ {[%emt 0:01:08]} 32. Kxh3 {[%emt 0:00:50]} Qf3+ {[%emt 0:00:40]} 0-1

[Event "LEM Niedersachsen-A-Open 2025"]
[Site "Verden"]
[Date "2025.01.02"]
[Round "1.19"]
[White "Hilker, Bjoern"]
[Black "Buecklers, Martin"]
[Result "1-0"]
[ECO "A42"]
[WhiteElo "1993"]
[BlackElo "1859"]
[Annotator "RC"]
[PlyCount "35"]
[EventDate "2024.12.27"]
[EventType "swiss"]
[EventCountry "GER"]
[SourceTitle "playchess.com"]
[Source "ChessBase"]
[SourceQuality "1"]
[TimeControl "40/5400+30:1800+30"]

1. e4 {[%emt 0:00:03]} g6 {[%emt 0:00:07]} 2. d4 {[%emt 0:00:09]} Bg7 {[%emt 0:00:06]} 3. c4 {[%emt 0:00:29]} d6 {[%emt 0:00:10]} 4. Nc3 {[%emt 0:00:10]} e5 {[%emt 0:00:06]} 5. d5 {[%emt 0:01:10]} f5 {[%emt 0:00:07]} 6. exf5 {[%emt 0:01:59]} gxf5 {[%emt 0:00:08]} 7. Qh5+ {[%emt 0:03:08]} Kf8 {[%emt 0:00:08]} 8. Bg5 {[%emt 0:02:36]} Nf6 {[%emt 0:05:02]} 9. Qd1 {[%emt 0:05:43]} a5 {[%emt 0:07:43]} 10. g3 {[%emt 0:01:32]} Na6 {[%emt 0:01:21]} 11. Bg2 {[%emt 0:02:06]} h6 {[%emt 0:05:02]} 12. Be3 {[%emt 0:00:47]} Ng4 {[%emt 0:00:33]} 13. Nge2 {[%emt 0:03:54]} Nxe3 {[%emt 0:00:13]} 14. fxe3 {[%emt 0:00:05]} e4 {[%emt 0:02:19]} 15. O-O {[%emt 0:05:05]} Bxc3 {[%emt 0:04:04]} 16. bxc3 {[%emt 0:01:22]} Qg5 {[%emt 0:02:15]} 17. Qd4 {[%emt 0:10:18]} Ke7 {[%emt 0:03:37]} 18. Qxh8 {[%emt 0:04:38]} 1-0

[Event "LEM Niedersachsen-A-Open 2025"]
[Site "Verden"]
[Date "2025.01.02"]
[Round "1.20"]
[White "Muecke, Leonard"]
[Black "Amrhein, Thorsten"]
[Result "1/2-1/2"]
[ECO "C42"]
[WhiteElo "1853"]
[BlackElo "1979"]
[Annotator "RC"]
[PlyCount "31"]
[EventDate "2024.12.27"]
[EventType "swiss"]
[EventCountry "GER"]
[SourceTitle "playchess.com"]
[Source "ChessBase"]
[SourceQuality "1"]
[TimeControl "40/5400+30:1800+30"]

1. e4 {[%emt 0:00:50]} e5 {[%emt 0:00:11]} 2. Nf3 {[%emt 0:00:06]} Nf6 {[%emt 0:00:07]} 3. Nxe5 {[%emt 0:00:44]} Nxe4 {[%emt 0:00:21]} 4. Qe2 {[%emt 0:02:21]} Qe7 {[%emt 0:00:10]} 5. Qxe4 {[%emt 0:00:34]} d6 {[%emt 0:00:12]} 6. g3 {[%emt 0:11:37]} Qxe5 {[%emt 0:04:51]} 7. Qxe5+ {[%emt 0:03:53]} dxe5 {[%emt 0:00:07]} 8. Bg2 {[%emt 0:00:38]} Bd6 {[%emt 0:03:35]} 9. O-O {[%emt 0:00:47]} O-O {[%emt 0:00:32]} 10. d3 {[%emt 0:01:13]} Nc6 {[%emt 0:02:54]} 11. Bxc6 {[%emt 0:26:07]} bxc6 {[%emt 0:00:14]} 12. Nd2 {[%emt 0:11:40]} Be6 {[%emt 0:06:24]} 13. Nc4 {[%emt 0:00:51]} Rab8 {[%emt 0:04:13]} 14. b3 {[%emt 0:01:57]} f6 {[%emt 0:06:00]} 15. Nxd6 {[%emt 0:05:04]} cxd6 {[%emt 0:00:03]} 16. f4 {[%emt 0:00:51]} 1/2-1/2

[Event "LEM Niedersachsen-A-Open 2025"]
[Site "Verden"]
[Date "2025.01.02"]
[Round "1.21"]
[White "Rieping, Lea"]
[Black "Vormann, Dirk"]
[Result "0-1"]
[ECO "C28"]
[WhiteElo "1973"]
[BlackElo "1860"]
[Annotator "RC"]
[PlyCount "76"]
[EventDate "2024.12.27"]
[EventType "swiss"]
[EventCountry "GER"]
[SourceTitle "playchess.com"]
[Source "ChessBase"]
[SourceQuality "1"]
[TimeControl "40/5400+30:1800+30"]

1. e4 {[%emt 0:00:03]} e5 {[%emt 0:00:04]} 2. Bc4 {[%emt 0:00:04]} Nc6 {[%emt 0:00:48]} 3. d3 {[%emt 0:00:28]} Nf6 {[%emt 0:00:47]} 4. Nc3 {[%emt 0:01:39]} Be7 {[%emt 0:00:34]} 5. f4 {[%emt 0:00:26]} d6 {[%emt 0:00:17]} 6. f5 {[%emt 0:08:17]} Na5 {[%emt 0:03:36]} 7. Nf3 {[%emt 0:01:43]} Nxc4 {[%emt 0:00:16]} 8. dxc4 {[%emt 0:00:06]} b6 {[%emt 0:00:19]} 9. Qd3 {[%emt 0:01:58]} Bb7 {[%emt 0:00:46]} 10. Nd5 {[%emt 0:00:27]} Qd7 {[%emt 0:02:47]} 11. Bg5 {[%emt 0:14:00]} Nxd5 {[%emt 0:00:16]} 12. cxd5 {[%emt 0:00:10]} Bxg5 {[%emt 0:00:07]} 13. Nxg5 {[%emt 0:00:05]} h6 {[%emt 0:00:04]} 14. Nf3 {[%emt 0:00:17]} a5 {[%emt 0:01:13]} 15. O-O {[%emt 0:03:49]} O-O {[%emt 0:01:51]} 16. g4 {[%emt 0:26:11]} Ba6 {[%emt 0:01:11]} 17. c4 {[%emt 0:00:05]} b5 {[%emt 0:00:04]} 18. b3 {[%emt 0:00:33]} bxc4 {[%emt 0:00:04]} 19. bxc4 {[%emt 0:00:06]} Qa4 {[%emt 0:00:09]} 20. Nd2 {[%emt 0:01:51]} Rfb8 {[%emt 0:02:13]} 21. f6 {[%emt 0:18:28]} g6 {[%emt 0:00:20]} 22. Qh3 {[%emt 0:00:40]} Kh7 {[%emt 0:00:47]} 23. Nf3 {[%emt 0:10:12]} Rh8 {[%emt 0:00:08]} 24. Rfc1 {[%emt 0:00:58]} Bc8 {[%emt 0:04:31]} 25. Qg3 {[%emt 0:01:42]} Rb8 {[%emt 0:11:07]} 26. Nd2 {[%emt 0:01:17]} Rb2 {[%emt 0:01:24]} 27. Nb3 {[%emt 0:00:36]} Ba6 {[%emt 1:08:17]} 28. Qc3 {[%emt 0:01:22]} Rxa2 {[%emt 0:00:00]} 29. Rxa2 {[%emt 0:01:26]} Qxa2 {[%emt 0:00:00]} 30. Qxa5 {[%emt 0:00:21]} Qxb3 {[%emt 0:00:00]} 31. Qxc7 {[%emt 0:01:16]} Qe3+ {[%emt 0:00:00]} 32. Kg2 {[%emt 0:00:08]} Qxe4+ {[%emt 0:00:00]} 33. Kf1 {[%emt 0:00:37]} Qh1+ {[%emt 0:00:00]} 34. Ke2 {[%emt 0:00:30]} Qxh2+ {[%emt 0:00:00]} 35. Kd1 {[%emt 0:00:19]} Qg1+ {[%emt 0:00:00]} 36. Kc2 {[%emt 0:01:01]} Qf2+ {[%emt 0:00:00]} 37. Kb3 {[%emt 0:00:46]} Qxf6 {[%emt 0:00:00]} 38. Ra1 {[%emt 0:01:03]} Rc8 {[%emt 0:00:00]} 0-1

[Event "LEM Niedersachsen-A-Open 2025"]
[Site "Verden"]
[Date "2025.01.02"]
[Round "1.23"]
[White "Ludwig, Bernard"]
[Black "Direk, Oguzhan"]
[Result "0-1"]
[ECO "D31"]
[WhiteElo "1962"]
[BlackElo "1838"]
[Annotator "RC"]
[PlyCount "62"]
[EventDate "2024.12.27"]
[EventType "swiss"]
[EventCountry "GER"]
[SourceTitle "playchess.com"]
[Source "ChessBase"]
[SourceQuality "1"]
[TimeControl "40/5400+30:1800+30"]

1. Nf3 {[%emt 0:00:04]} d5 {[%emt 0:00:52]} 2. d4 {[%emt 0:00:05]} c6 {[%emt 0:00:33]} 3. c4 {[%emt 0:00:16]} e6 {[%emt 0:00:06]} 4. Nc3 {[%emt 0:00:36]} dxc4 {[%emt 0:00:09]} 5. a4 {[%emt 0:01:30]} Bb4 {[%emt 0:00:44]} 6. e3 {[%emt 0:01:44]} b5 {[%emt 0:00:31]} 7. Bd2 {[%emt 0:02:12]} a5 {[%emt 0:00:20]} 8. axb5 {[%emt 0:03:04]} Bxc3 {[%emt 0:00:07]} 9. Bxc3 {[%emt 0:01:59]} cxb5 {[%emt 0:01:45]} 10. b3 {[%emt 0:04:09]} Bb7 {[%emt 0:00:07]} 11. bxc4 {[%emt 0:04:36]} b4 {[%emt 0:00:04]} 12. Bd2 {[%emt 0:06:40]} Nf6 {[%emt 0:03:36]} 13. c5 {[%emt 0:06:02]} O-O {[%emt 0:04:39]} 14. Bb5 {[%emt 0:02:19]} Bc6 {[%emt 0:05:33]} 15. Qa4 {[%emt 0:04:31]} Qd7 {[%emt 0:02:34]} 16. Ne5 {[%emt 0:08:13]} Bxb5 {[%emt 0:01:45]} 17. Nxd7 {[%emt 0:00:20]} Bxa4 {[%emt 0:00:17]} 18. Nxf6+ {[%emt 0:02:28]} gxf6 {[%emt 0:00:58]} 19. Rxa4 {[%emt 0:00:05]} Nc6 {[%emt 0:00:04]} 20. Ke2 {[%emt 0:02:32]} Rfd8 {[%emt 0:07:44]} 21. Rha1 {[%emt 0:04:22]} Rab8 {[%emt 0:11:09]} 22. f3 {[%emt 0:06:56]} e5 {[%emt 0:01:13]} 23. dxe5 {[%emt 0:02:06]} fxe5 {[%emt 0:00:09]} 24. Be1 {[%emt 0:03:17]} Rb5 {[%emt 0:02:22]} 25. Rc1 {[%emt 0:09:20]} Rd5 {[%emt 0:00:29]} 26. Rc4 {[%emt 0:02:43]} b3 {[%emt 0:04:27]} 27. Ra1 {[%emt 0:07:10]} Rdxc5 {[%emt 0:00:46]} 28. Rg4+ {[%emt 0:01:40]} Kf8 {[%emt 0:00:16]} 29. Rb1 {[%emt 0:01:41]} Rc2+ {[%emt 0:01:30]} 30. Kd3 {[%emt 0:01:20]} Rd5+ {[%emt 0:00:28]} 31. Ke4 {[%emt 0:00:34]} Ne7 {[%emt 0:00:07]} 0-1

[Event "LEM Niedersachsen-A-Open 2025"]
[Site "Verden"]
[Date "2025.01.02"]
[Round "1.24"]
[White "Schramm, Kilian"]
[Black "Boerma, Daniel"]
[Result "1/2-1/2"]
[ECO "C01"]
[WhiteElo "1834"]
[BlackElo "1958"]
[Annotator "RC"]
[PlyCount "58"]
[EventDate "2024.12.27"]
[EventType "swiss"]
[EventCountry "GER"]
[SourceTitle "playchess.com"]
[Source "ChessBase"]
[SourceQuality "1"]
[TimeControl "40/5400+30:1800+30"]

1. e4 {[%emt 0:00:02]} e6 {[%emt 0:00:08]} 2. d4 {[%emt 0:00:15]} d5 {[%emt 0:00:07]} 3. Bd3 {[%emt 0:00:26]} c5 {[%emt 0:00:53]} 4. c3 {[%emt 0:00:26]} dxe4 {[%emt 0:00:27]} 5. Bxe4 {[%emt 0:00:07]} cxd4 {[%emt 0:00:19]} 6. cxd4 {[%emt 0:00:38]} Nf6 {[%emt 0:00:07]} 7. Bf3 {[%emt 0:00:06]} Be7 {[%emt 0:00:25]} 8. Nc3 {[%emt 0:00:09]} O-O {[%emt 0:00:14]} 9. Nge2 {[%emt 0:00:07]} Qb6 {[%emt 0:01:29]} 10. O-O {[%emt 0:02:15]} Rd8 {[%emt 0:01:46]} 11. Qc2 {[%emt 0:00:36]} Nc6 {[%emt 0:00:48]} 12. Be3 {[%emt 0:00:30]} Nb4 {[%emt 0:00:36]} 13. Qb3 {[%emt 0:02:42]} Nbd5 {[%emt 0:00:14]} 14. Nxd5 {[%emt 0:01:15]} Nxd5 {[%emt 0:00:58]} 15. Bxd5 {[%emt 0:02:30]} exd5 {[%emt 0:01:49]} 16. Qxb6 {[%emt 0:00:16]} axb6 {[%emt 0:00:06]} 17. Bf4 {[%emt 0:00:10]} b5 {[%emt 0:00:42]} 18. Rfe1 {[%emt 0:01:33]} Be6 {[%emt 0:00:49]} 19. Nc3 {[%emt 0:01:49]} Bb4 {[%emt 0:02:06]} 20. Rec1 {[%emt 0:02:30]} Bxc3 {[%emt 0:03:56]} 21. Rxc3 {[%emt 0:00:10]} Rdc8 {[%emt 0:00:24]} 22. Rxc8+ {[%emt 0:00:14]} Rxc8 {[%emt 0:00:17]} 23. Rc1 {[%emt 0:00:06]} Rc4 {[%emt 0:02:46]} 24. Rxc4 {[%emt 0:01:20]} dxc4 {[%emt 0:00:06]} 25. Kf1 {[%emt 0:00:11]} Kf8 {[%emt 0:00:07]} 26. Ke1 {[%emt 0:00:20]} Ke7 {[%emt 0:00:10]} 27. Kd2 {[%emt 0:00:05]} Kd7 {[%emt 0:00:09]} 28. Kc3 {[%emt 0:00:12]} Kc6 {[%emt 0:00:07]} 29. f3 {[%emt 0:01:24]} h5 {[%emt 0:00:53]} 1/2-1/2

[Event "LEM Niedersachsen-A-Open 2025"]
[Site "Verden"]
[Date "2025.01.02"]
[Round "1.25"]
[White "Belakhin, Alexander"]
[Black "Kiesel, Lara"]
[Result "1-0"]
[ECO "E24"]
[WhiteElo "1945"]
[BlackElo "1825"]
[Annotator "NA RC"]
[PlyCount "83"]
[EventDate "2024.12.27"]
[EventType "swiss"]
[EventCountry "GER"]
[SourceTitle "playchess.com"]
[Source "ChessBase"]
[SourceQuality "1"]
[TimeControl "40/5400+30:1800+30"]

1. d4 {[%emt 0:00:04]} Nf6 {[%emt 0:00:07]} 2. c4 {[%emt 0:00:10]} e6 {[%emt 0:00:07]} 3. Nc3 {[%emt 0:00:06]} Bb4 {[%emt 0:00:07]} 4. a3 {[%emt 0:00:07]} Bxc3+ {[%emt 0:00:09]} 5. bxc3 {[%emt 0:00:02]} b6 {[%emt 0:00:51]} 6. f3 {[%emt 0:01:16]} Nc6 {[%emt 0:02:37] E24: Nimzo-Indian: Sämisch: Unusual Black 5th moves and 5...c5 sidelines.} 7. e4 {[%emt 0:01:25]} Na5 {[%emt 0:02:46]} 8. Bd3 {[%emt 0:09:04]} Ba6 {[%emt 0:02:01]} 9. e5 {[%emt 0:07:03]} Ng8 {[%emt 0:00:22]} 10. Qe2 {[%emt 0:03:13]} Ne7 {[%emt 0:06:09]} 11. Bg5 {[%emt 0:02:52]} h6 {[%emt 0:00:28]} 12. Bh4 {[%emt 0:01:53]} d6 {[%emt 0:06:41]} 13. f4 {[%emt 0:02:04]} c5 {[%emt 0:09:23]} (13... d5 $11) 14. Nf3 {[%emt 0:08:39]} Bb7 {[%emt 0:17:00]} (14... dxe5 $16 15. Nxe5 O-O) 15. O-O {[%emt 0:05:13]} (15. d5 $18) 15... O-O {[%emt 0:03:16]} 16. Rad1 {[%emt 0:07:11]} Qc7 {[%emt 0:01:43] [#]} 17. Nd2 {[%emt 0:09:44]} ({White should play} 17. d5 $1 $16 {[%cal Rd5e6]} Nf5 18. dxe6 Bxf3 19. Rxf3 fxe6 (19... Nxh4 $2 {perishes.} 20. exd6 Qd8 21. Re3 $18) 20. Bxf5 Rxf5 21. g4 (21. exd6 Qd7 $18) (21. Rxd6 Qf7 $16)) 17... Rac8 {[%emt 0:08:31]} 18. Bxe7 {[%emt 0:03:50]} Qxe7 {[%emt 0:00:06]} 19. Ne4 $1 {[%emt 0:01:23]} Bxe4 {[%emt 0:37:36]} 20. Qxe4 {[%emt 0:00:36]} g6 {[%emt 0:00:00]} 21. d5 {[%emt 0:03:29]} exd5 {[%emt 0:00:00]} 22. cxd5 {[%emt 0:00:20]} c4 {[%emt 0:00:00]} 23. Bc2 {[%emt 0:04:06]} Rce8 {[%emt 0:00:00]} 24. Ba4 {[%emt 0:04:04]} Rd8 {[%emt 0:00:00]} 25. e6 {[%emt 0:01:08]} f5 $16 {[%emt 0:00:00]} 26. Qd4 {[%emt 0:02:46]} Kh7 {[%emt 0:00:00]} 27. Rf3 {[%emt 0:02:08]} Rc8 {[%emt 0:00:00]} 28. Bd7 {[%emt 0:03:24]} Rc7 {[%emt 0:00:00]} 29. Rb1 {[%emt 0:02:51]} Nb3 {[%emt 0:00:00]} 30. Qd1 {[%emt 0:00:49]} Na5 {[%emt 0:00:00]} 31. Rb4 {[%emt 0:01:47]} Rc5 {[%emt 0:00:00]} 32. Rb5 {[%emt 0:01:17]} Rxb5 {[%emt 0:00:00]} 33. Bxb5 {[%emt 0:00:01]} Rc8 {[%emt 0:00:00]} 34. h3 {[%emt 0:01:56]} h5 {[%emt 0:00:00]} 35. Ba4 {[%emt 0:01:40]} h4 {[%emt 0:00:00]} 36. Bc2 {[%emt 0:01:05]} Rc5 {[%emt 0:00:00]} 37. g4 {[%emt 0:00:58]} hxg3 {[%emt 0:00:00]} 38. Rxg3 {[%emt 0:00:13]} Rc8 {[%emt 0:00:00]} 39. Bxf5 {[%emt 0:01:12]} Rg8 {[%emt 0:00:19]} 40. Qh5+ {[%emt 0:00:17]} Kg7 {[%emt 0:00:42]} 41. Qxg6+ {[%emt 0:30:49]} Kf8 {[%emt 0:30:08]} 42. Qxg8# {[%emt 0:09:15]} 1-0

[Event "LEM Niedersachsen-A-Open 2025"]
[Site "Verden"]
[Date "2025.01.02"]
[Round "1.27"]
[White "Lebiedz, Oliver"]
[Black "Bundan, Edward"]
[Result "0-1"]
[ECO "B22"]
[WhiteElo "1939"]
[BlackElo "1822"]
[Annotator "NA RC"]
[PlyCount "77"]
[EventDate "2024.12.27"]
[EventType "swiss"]
[EventCountry "GER"]
[SourceTitle "playchess.com"]
[Source "ChessBase"]
[SourceQuality "1"]
[TimeControl "40/5400+30:1800+30"]

1. e4 {[%emt 0:00:04]} c5 {[%emt 0:00:11]} 2. c3 {[%emt 0:00:19]} Nf6 {[%emt 0:00:05]} 3. e5 {[%emt 0:00:11]} Nd5 {[%emt 0:00:05]} 4. Bc4 {[%emt 0:00:16]} Nb6 {[%emt 0:00:57]} 5. Bb3 {[%emt 0:00:08]} c4 {[%emt 0:00:41]} 6. Bc2 {[%emt 0:00:07]} Nc6 {[%emt 0:00:34]} 7. Nf3 {[%emt 0:00:22]} g6 {[%emt 0:00:37]} 8. a4 {[%emt 0:05:07] B22: Sicilian: 2 c3.} a5 {[%emt 0:02:28]} 9. O-O {[%emt 0:02:33]} Bg7 {[%emt 0:00:36]} 10. Re1 {[%emt 0:01:27]} O-O {[%emt 0:01:47]} 11. Na3 {[%emt 0:09:15]} d5 {[%emt 0:09:25]} 12. exd6 {[%emt 0:08:53]} Qxd6 {[%emt 0:05:39]} 13. Re4 {[%emt 0:19:45]} (13. h3 $14) 13... Be6 {[%emt 0:03:33]} (13... Qd5 {might be stronger.}) 14. Nb5 {[%emt 0:06:25]} Qd7 {[%emt 0:01:01]} 15. d4 {[%emt 0:15:56]} (15. Rxe6 $11 fxe6 (15... Qxe6 16. Nc7 $14) 16. Qe2) 15... cxd3 {[%emt 0:01:37]} 16. Qxd3 {[%emt 0:00:27]} Qxd3 {[%emt 0:03:30]} 17. Bxd3 {[%emt 0:00:02]} Bf5 {[%emt 0:01:40]} 18. Re3 {[%emt 0:03:11]} Nd5 {[%emt 0:01:18]} 19. Bxf5 {[%emt 0:07:01]} Nxe3 {[%emt 0:01:29]} 20. Be4 {[%emt 0:03:06]} Nc4 {[%emt 0:01:54]} 21. Bg5 {[%emt 0:03:50]} (21. Bd5 $17 Nb6 22. Bb3) 21... Bf6 {[%emt 0:03:10]} 22. Bf4 {[%emt 0:02:01]} e5 {[%emt 0:00:57]} 23. Bh6 {[%emt 0:00:46]} Rfd8 {[%emt 0:06:25]} 24. h4 {[%emt 0:03:38]} Nd6 {[%emt 0:02:23]} 25. Bc2 {[%emt 0:00:14]} Nxb5 {[%emt 0:03:50]} 26. axb5 {[%emt 0:00:06]} Ne7 {[%emt 0:03:15]} 27. Re1 {[%emt 0:02:37]} Rd5 {[%emt 0:02:56]} ({Black should try} 27... Nf5 $19 28. Bc1 Nd6 (28... Nxh4 $2 29. Nxh4 Bxh4 30. g3 $19)) 28. c4 {[%emt 0:02:02]} Rc5 {[%emt 0:01:36]} 29. Nd2 {[%emt 0:00:52]} Bg7 {[%emt 0:02:28]} 30. Bg5 {[%emt 0:01:00]} Nf5 {[%emt 0:01:41]} 31. Be4 {[%emt 0:00:51]} h6 {[%emt 0:03:05]} 32. Be3 {[%emt 0:00:48]} Nxe3 {[%emt 0:01:11]} 33. Rxe3 {[%emt 0:00:05]} Rc7 $17 {[%emt 0:01:52]} 34. Bd5 {[%emt 0:00:45]} Kh7 {[%emt 0:03:17]} 35. Ne4 {[%emt 0:01:14]} Bf8 {[%emt 0:00:38]} 36. b6 {[%emt 0:01:21]} Re7 {[%emt 0:01:53]} 37. Nd6 {[%emt 0:00:53]} Rd8 {[%emt 0:02:13]} 38. Nb5 {[%emt 0:01:20]} Red7 {[%emt 0:04:20]} 39. Rxe5 {[%emt 0:00:00]} 0-1